[Event "Late-Titled-Tuesday-Blitz-May-07-2024"]
[Site "Chess.com"]
[Date "2024.05.07"]
[Round "5"]
[White "CarrotsandPizza"]
[Black "GMG"]
[Result "0-1"]
[WhiteElo "2588"]
[BlackElo "2820"]
[TimeControl "180+1"]
[EndTime "14:55:25 PDT"]
[Termination "GMG won by resignation"]

1. e4 {[%clk 0:03:00.9]} 1... c5 {[%clk 0:02:57.8]} 2. Nf3 {[%clk 0:03:00.6]}
2... Nc6 {[%clk 0:02:58.1]} 3. d4 {[%clk 0:03:01]} 3... cxd4 {[%clk 0:02:59]} 4.
Nxd4 {[%clk 0:03:01.3]} 4... Nf6 {[%clk 0:02:59.6]} 5. Nc3 {[%clk 0:03:01.5]}
5... e5 {[%clk 0:03:00.2]} 6. Ndb5 {[%clk 0:03:02.1]} 6... d6 {[%clk 0:03:00.8]}
7. Bg5 {[%clk 0:03:02.4]} 7... a6 {[%clk 0:03:01]} 8. Na3 {[%clk 0:03:03]} 8...
Be6 {[%clk 0:03:01.3]} 9. Bxf6 {[%clk 0:03:03.5]} 9... Qxf6 {[%clk 0:02:59.8]}
10. Nc4 {[%clk 0:03:04]} 10... Qd8 {[%clk 0:02:58.7]} 11. Ne3 {[%clk 0:03:03.2]}
11... Be7 {[%clk 0:02:58.9]} 12. Ncd5 {[%clk 0:03:03.3]} 12... Bg5 {[%clk
0:02:59.2]} 13. Bd3 {[%clk 0:03:02.6]} 13... Ne7 {[%clk 0:02:55.5]} 14. Bc4
{[%clk 0:02:46.7]} 14... O-O {[%clk 0:02:39.7]} 15. O-O {[%clk 0:02:46]} 15...
Rc8 {[%clk 0:02:31.2]} 16. Bb3 {[%clk 0:02:46]} 16... Nc6 {[%clk 0:02:23.6]} 17.
c3 {[%clk 0:02:44.4]} 17... Na5 {[%clk 0:02:22]} 18. Qd3 {[%clk 0:02:35.1]}
18... Nxb3 {[%clk 0:02:16.6]} 19. axb3 {[%clk 0:02:36]} 19... g6 {[%clk
0:02:16.8]} 20. b4 {[%clk 0:02:25.7]} 20... Bh6 {[%clk 0:02:09.2]} 21. Nc4
{[%clk 0:02:19]} 21... f5 {[%clk 0:02:05.2]} 22. Nxd6 {[%clk 0:02:19]} 22...
fxe4 {[%clk 0:01:57.9]} 23. Qd1 {[%clk 0:02:02.9]} 23... Rc6 {[%clk 0:01:53.9]}
24. Nxe4 {[%clk 0:01:45.1]} 24... Bxd5 {[%clk 0:01:44.4]} 25. Qc2 {[%clk
0:01:29.9]} 25... Qh4 {[%clk 0:01:38.5]} 26. Rae1 {[%clk 0:01:21.3]} 26... Rf4
{[%clk 0:01:28.1]} 27. g3 {[%clk 0:01:17.2]} 27... Rxe4 {[%clk 0:01:14.8]} 28.
Rd1 {[%clk 0:01:03]} 28... Qh3 {[%clk 0:00:37.7]} 29. Rxd5 {[%clk 0:01:00.8]}
29... Rh4 {[%clk 0:00:37]} 30. gxh4 {[%clk 0:00:59.8]} 30... Qg4+ {[%clk
0:00:36.5]} 31. Kh1 {[%clk 0:00:59.6]} 31... Qf3+ {[%clk 0:00:36.2]} 32. Kg1
{[%clk 0:00:59.7]} 32... Qxd5 {[%clk 0:00:36.5]} 33. Rd1 {[%clk 0:00:58.5]}
33... Qe6 {[%clk 0:00:32.6]} 34. Qd3 {[%clk 0:00:54.9]} 34... Bf8 {[%clk
0:00:29.2]} 35. Qd8 {[%clk 0:00:50.9]} 35... Rd6 {[%clk 0:00:23.9]} 36. Rxd6
{[%clk 0:00:48.5]} 36... Qxd6 {[%clk 0:00:24.8]} 37. Qc8 {[%clk 0:00:48.9]}
37... Qd1+ {[%clk 0:00:21.2]} 38. Kg2 {[%clk 0:00:48.3]} 38... Qd5+ {[%clk
0:00:21.8]} 39. Kg1 {[%clk 0:00:48.3]} 39... Qc6 {[%clk 0:00:22.4]} 40. Qd8
{[%clk 0:00:47.4]} 40... Kf7 {[%clk 0:00:20.6]} 41. Qg5 {[%clk 0:00:46.8]} 41...
Qe6 {[%clk 0:00:18.3]} 42. h5 {[%clk 0:00:46.8]} 42... gxh5 {[%clk 0:00:17.8]}
43. Kf1 {[%clk 0:00:42.5]} 43... Qc4+ {[%clk 0:00:17.7]} 44. Kg1 {[%clk
0:00:40]} 44... Qg4+ {[%clk 0:00:17.4]} 0-1

[Event "Late-Titled-Tuesday-Blitz-May-07-2024"]
[Site "Chess.com"]
[Date "2024.05.07"]
[Round "5"]
[White "Reyson01"]
[Black "koziororo"]
[Result "1-0"]
[WhiteElo "2513"]
[BlackElo "2581"]
[TimeControl "180+1"]
[EndTime "14:55:30 PDT"]
[Termination "Reyson01 won by resignation"]

1. e4 {[%clk 0:03:00.9]} 1... f6 {[%clk 0:02:50.8]} 2. d4 {[%clk 0:02:49.5]}
2... Kf7 {[%clk 0:02:51.7]} 3. Nf3 {[%clk 0:02:43.7]} 3... g6 {[%clk 0:02:51.7]}
4. h4 {[%clk 0:02:42.9]} 4... Kg7 {[%clk 0:02:52.6]} 5. h5 {[%clk 0:02:42.5]}
5... e6 {[%clk 0:02:50.4]} 6. e5 {[%clk 0:02:37]} 6... Be7 {[%clk 0:02:39.1]} 7.
hxg6 {[%clk 0:02:24.3]} 7... hxg6 {[%clk 0:02:37.7]} 8. Rxh8 {[%clk 0:02:25.2]}
8... Kxh8 {[%clk 0:02:38.5]} 9. exf6 {[%clk 0:02:24.9]} 9... Bxf6 {[%clk
0:02:35.9]} 10. Bd3 {[%clk 0:02:25.5]} 10... Ne7 {[%clk 0:02:32.7]} 11. Bg5
{[%clk 0:02:22.5]} 11... Nf5 {[%clk 0:02:18.5]} 12. Qd2 {[%clk 0:01:54.4]} 12...
Nc6 {[%clk 0:02:14.4]} 13. Nc3 {[%clk 0:01:46.7]} 13... Ncxd4 {[%clk 0:01:57.2]}
14. Bxf6+ {[%clk 0:01:34]} 14... Qxf6 {[%clk 0:01:58.1]} 15. Nxd4 {[%clk
0:01:29.4]} 15... Qxd4 {[%clk 0:01:41]} 16. O-O-O {[%clk 0:01:28.7]} 16... b5
{[%clk 0:00:57.9]} 17. Nxb5 {[%clk 0:01:09.3]} 17... Qg7 {[%clk 0:00:42.3]} 18.
Rh1+ {[%clk 0:00:43.2]} 18... Kg8 {[%clk 0:00:41.5]} 19. Bxf5 {[%clk 0:00:27]}
19... gxf5 {[%clk 0:00:35.8]} 20. Rh3 {[%clk 0:00:21]} 20... Rb8 {[%clk
0:00:33.7]} 21. Rg3 {[%clk 0:00:20]} 21... Rxb5 {[%clk 0:00:32.8]} 22. Rxg7+
{[%clk 0:00:18]} 22... Kxg7 {[%clk 0:00:33.7]} 23. Qg5+ {[%clk 0:00:17.9]} 23...
Kf7 {[%clk 0:00:18.9]} 24. Qd8 {[%clk 0:00:17.1]} 24... Rb8 {[%clk 0:00:19.4]}
25. Qxc7 {[%clk 0:00:17.2]} 25... Ra8 {[%clk 0:00:19.6]} 26. f4 {[%clk
0:00:15.7]} 26... a5 {[%clk 0:00:19.9]} 27. a4 {[%clk 0:00:15.1]} 27... Ke7
{[%clk 0:00:20.3]} 28. c4 {[%clk 0:00:14.5]} 28... Ba6 {[%clk 0:00:20.6]} 29. c5
{[%clk 0:00:14.6]} 29... Ke8 {[%clk 0:00:18.7]} 30. Qd6 {[%clk 0:00:14.1]} 30...
Bb7 {[%clk 0:00:18.1]} 31. g3 {[%clk 0:00:10.5]} 31... Bc6 {[%clk 0:00:18.6]}
32. Qd4 {[%clk 0:00:10.2]} 32... Rb8 {[%clk 0:00:18.5]} 33. Qh8+ {[%clk
0:00:10.4]} 33... Kf7 {[%clk 0:00:14.8]} 34. Qxb8 {[%clk 0:00:11.3]} 34... Bxa4
{[%clk 0:00:15.1]} 35. Qa7 {[%clk 0:00:10.8]} 35... Bc6 {[%clk 0:00:16]} 1-0

[Event "Late-Titled-Tuesday-Blitz-May-07-2024"]
[Site "Chess.com"]
[Date "2024.05.07"]
[Round "5"]
[White "scandalgod"]
[Black "MKlose11"]
[Result "1-0"]
[WhiteElo "2523"]
[BlackElo "2665"]
[TimeControl "180+1"]
[EndTime "14:55:31 PDT"]
[Termination "scandalgod won by resignation"]

1. d4 {[%clk 0:03:00.9]} 1... Nf6 {[%clk 0:02:58.2]} 2. c4 {[%clk 0:03:00.8]}
2... c5 {[%clk 0:02:57.8]} 3. d5 {[%clk 0:03:00.6]} 3... b5 {[%clk 0:02:57.4]}
4. cxb5 {[%clk 0:03:01.2]} 4... a6 {[%clk 0:02:57.7]} 5. Nc3 {[%clk 0:02:59.1]}
5... g6 {[%clk 0:02:57.2]} 6. e4 {[%clk 0:02:56.9]} 6... d6 {[%clk 0:02:56.8]}
7. a4 {[%clk 0:02:42.3]} 7... Bg7 {[%clk 0:02:52.6]} 8. Nf3 {[%clk 0:02:42.5]}
8... O-O {[%clk 0:02:52.3]} 9. Be2 {[%clk 0:02:41.6]} 9... axb5 {[%clk
0:02:51.5]} 10. Bxb5 {[%clk 0:02:40.2]} 10... Ba6 {[%clk 0:02:51.5]} 11. Bf4
{[%clk 0:02:35.9]} 11... Nbd7 {[%clk 0:02:24.6]} 12. O-O {[%clk 0:02:34.4]}
12... Qb6 {[%clk 0:02:24.2]} 13. Re1 {[%clk 0:02:28.6]} 13... Bxb5 {[%clk
0:02:24.4]} 14. Nxb5 {[%clk 0:02:23.6]} 14... Nh5 {[%clk 0:02:20.7]} 15. Bg5
{[%clk 0:02:15.2]} 15... Rfe8 {[%clk 0:02:12.7]} 16. Nd2 {[%clk 0:02:11.5]}
16... Qb7 {[%clk 0:02:04.8]} 17. Nc4 {[%clk 0:02:07.8]} 17... Nb6 {[%clk
0:02:04.1]} 18. Nxb6 {[%clk 0:02:03.8]} 18... Qxb6 {[%clk 0:02:04.3]} 19. Ra2
{[%clk 0:02:02.8]} 19... Nf6 {[%clk 0:02:01.2]} 20. b3 {[%clk 0:01:59.5]} 20...
Nd7 {[%clk 0:02:00.4]} 21. h3 {[%clk 0:01:54.6]} 21... h6 {[%clk 0:01:58.7]} 22.
Be3 {[%clk 0:01:51.7]} 22... Qa5 {[%clk 0:01:53.3]} 23. Bd2 {[%clk 0:01:47.9]}
23... Qb6 {[%clk 0:01:53.4]} 24. Qe2 {[%clk 0:01:44.5]} 24... Reb8 {[%clk
0:01:52.2]} 25. Rc2 {[%clk 0:01:40.8]} 25... Qd8 {[%clk 0:01:51.3]} 26. Bc3
{[%clk 0:01:36.7]} 26... Rb7 {[%clk 0:01:46.7]} 27. Bxg7 {[%clk 0:01:32.1]}
27... Kxg7 {[%clk 0:01:47.6]} 28. f4 {[%clk 0:01:31.9]} 28... f6 {[%clk
0:01:44.2]} 29. Rf1 {[%clk 0:01:27.6]} 29... Rab8 {[%clk 0:01:43.5]} 30. Rc3
{[%clk 0:01:25]} 30... Qa5 {[%clk 0:01:38.6]} 31. Rg3 {[%clk 0:01:23.6]} 31...
Nf8 {[%clk 0:01:33.8]} 32. e5 {[%clk 0:01:20.9]} 32... f5 {[%clk 0:01:25.5]} 33.
exd6 {[%clk 0:01:05.8]} 33... exd6 {[%clk 0:01:22.9]} 34. Nxd6 {[%clk
0:01:04.4]} 34... Rd7 {[%clk 0:01:11.7]} 35. Qe5+ {[%clk 0:01:00.3]} 35... Kh7
{[%clk 0:01:08]} 36. Ne8 {[%clk 0:00:58.7]} 36... Rxe8 {[%clk 0:00:49.6]} 37.
Qxe8 {[%clk 0:00:57.4]} 37... Qd8 {[%clk 0:00:32.8]} 38. Qxd8 {[%clk 0:00:55.6]}
38... Rxd8 {[%clk 0:00:33.7]} 39. Rd3 {[%clk 0:00:55]} 39... Kg7 {[%clk
0:00:33]} 40. Rc1 {[%clk 0:00:54.5]} 40... Nd7 {[%clk 0:00:32.6]} 41. d6 {[%clk
0:00:53.2]} 41... Kf6 {[%clk 0:00:22.6]} 42. Re1 {[%clk 0:00:52.7]} 42... Rb8
{[%clk 0:00:22.5]} 43. Re7 {[%clk 0:00:49.5]} 43... Nb6 {[%clk 0:00:22.3]} 44.
Rc7 {[%clk 0:00:46.2]} 44... c4 {[%clk 0:00:18]} 45. bxc4 {[%clk 0:00:45.4]}
45... Nxa4 {[%clk 0:00:18.2]} 46. c5 {[%clk 0:00:45.1]} 46... Rb1+ {[%clk
0:00:17.1]} 47. Kh2 {[%clk 0:00:44.8]} 47... Rc1 {[%clk 0:00:16.7]} 48. d7
{[%clk 0:00:44.1]} 48... Nxc5 {[%clk 0:00:15.6]} 49. Rxc5 {[%clk 0:00:43.9]} 1-0

[Event "Late-Titled-Tuesday-Blitz-May-07-2024"]
[Site "Chess.com"]
[Date "2024.05.07"]
[Round "5"]
[White "Oleksandr_Bortnyk"]
[Black "jcibarra"]
[Result "1-0"]
[WhiteElo "3074"]
[BlackElo "2922"]
[TimeControl "180+1"]
[EndTime "14:55:38 PDT"]
[Termination "Oleksandr_Bortnyk won on time"]

1. e4 {[%clk 0:02:59.9]} 1... e5 {[%clk 0:02:55.6]} 2. Bc4 {[%clk 0:02:58.4]}
2... Nf6 {[%clk 0:02:54.9]} 3. d3 {[%clk 0:02:58.5]} 3... Bc5 {[%clk 0:02:52.3]}
4. Nc3 {[%clk 0:02:57.8]} 4... O-O {[%clk 0:02:49.3]} 5. Bg5 {[%clk 0:02:57.5]}
5... h6 {[%clk 0:02:47.3]} 6. Bh4 {[%clk 0:02:57.6]} 6... c6 {[%clk 0:02:46.3]}
7. Nf3 {[%clk 0:02:55.3]} 7... b5 {[%clk 0:02:40]} 8. Bb3 {[%clk 0:02:54.7]}
8... d6 {[%clk 0:02:40.5]} 9. d4 {[%clk 0:02:36.2]} 9... exd4 {[%clk 0:02:33.2]}
10. Nxd4 {[%clk 0:02:37.1]} 10... Re8 {[%clk 0:02:13.5]} 11. O-O {[%clk
0:02:21.1]} 11... a5 {[%clk 0:01:58.8]} 12. a3 {[%clk 0:02:15.6]} 12... Bb7
{[%clk 0:01:35.2]} 13. Nf5 {[%clk 0:02:05.8]} 13... Bc8 {[%clk 0:01:13]} 14. Qf3
{[%clk 0:02:02.1]} 14... Bxf5 {[%clk 0:01:13]} 15. Qxf5 {[%clk 0:01:57]} 15...
Nbd7 {[%clk 0:01:12.5]} 16. Rad1 {[%clk 0:01:49]} 16... Qc7 {[%clk 0:01:06.1]}
17. Rfe1 {[%clk 0:01:35.4]} 17... Re5 {[%clk 0:01:05.1]} 18. Qf3 {[%clk
0:01:10.7]} 18... b4 {[%clk 0:00:51.8]} 19. Na4 {[%clk 0:01:06.5]} 19... bxa3
{[%clk 0:00:21.7]} 20. bxa3 {[%clk 0:00:46.4]} 20... Bxa3 {[%clk 0:00:21.5]} 21.
Bg3 {[%clk 0:00:44.2]} 21... Bb4 {[%clk 0:00:17.5]} 22. c3 {[%clk 0:00:42.5]}
22... Bc5 {[%clk 0:00:16]} 23. Bxe5 {[%clk 0:00:39.1]} 23... Nxe5 {[%clk
0:00:16.6]} 24. Qg3 {[%clk 0:00:34.2]} 24... Ba7 {[%clk 0:00:15.6]} 25. h3
{[%clk 0:00:27.6]} 25... Re8 {[%clk 0:00:12.8]} 26. Kh1 {[%clk 0:00:26.4]} 26...
Qe7 {[%clk 0:00:07.9]} 27. f4 {[%clk 0:00:26]} 27... Nh5 {[%clk 0:00:05.1]} 28.
Qh2 {[%clk 0:00:23.7]} 28... Ng6 {[%clk 0:00:05.7]} 29. g3 {[%clk 0:00:20.6]}
29... Qf6 {[%clk 0:00:03]} 30. Rd3 {[%clk 0:00:20.2]} 30... Bb8 {[%clk
0:00:02.4]} 31. Qe2 {[%clk 0:00:19.6]} 31... Ngxf4 {[%clk 0:00:01.8]} 32. gxf4
{[%clk 0:00:17.1]} 32... Nxf4 {[%clk 0:00:02.7]} 33. Rf3 {[%clk 0:00:12.7]}
33... Nd3 {[%clk 0:00:03.6]} 34. Rxf6 {[%clk 0:00:13.5]} 1-0

[Event "Late-Titled-Tuesday-Blitz-May-07-2024"]
[Site "Chess.com"]
[Date "2024.05.07"]
[Round "5"]
[White "Byniolus"]
[Black "GM_dmitrij"]
[Result "0-1"]
[WhiteElo "2829"]
[BlackElo "3046"]
[TimeControl "180+1"]
[EndTime "14:55:38 PDT"]
[Termination "GM_dmitrij won by resignation"]

1. d4 {[%clk 0:03:00.9]} 1... Nf6 {[%clk 0:02:58.2]} 2. Nf3 {[%clk 0:03:01]}
2... d5 {[%clk 0:02:56.7]} 3. Bf4 {[%clk 0:03:00.9]} 3... c5 {[%clk 0:02:57.2]}
4. c3 {[%clk 0:03:01.1]} 4... Qb6 {[%clk 0:02:51.6]} 5. Qb3 {[%clk 0:03:00.8]}
5... c4 {[%clk 0:02:44.2]} 6. Qc2 {[%clk 0:03:00]} 6... Nc6 {[%clk 0:02:44.3]}
7. Nbd2 {[%clk 0:02:58.8]} 7... Bg4 {[%clk 0:02:44.1]} 8. e3 {[%clk 0:02:51.8]}
8... e6 {[%clk 0:02:44.3]} 9. b3 {[%clk 0:02:51]} 9... cxb3 {[%clk 0:02:39.4]}
10. axb3 {[%clk 0:02:50.3]} 10... Be7 {[%clk 0:02:36.8]} 11. Be2 {[%clk
0:02:35.3]} 11... O-O {[%clk 0:02:36]} 12. h3 {[%clk 0:02:35.1]} 12... Bf5
{[%clk 0:02:35.9]} 13. Qb2 {[%clk 0:02:35.3]} 13... h6 {[%clk 0:02:28.4]} 14.
O-O {[%clk 0:02:34.2]} 14... Rfc8 {[%clk 0:02:28]} 15. b4 {[%clk 0:02:26.6]}
15... a6 {[%clk 0:01:50.5]} 16. Rfc1 {[%clk 0:02:22.5]} 16... Na7 {[%clk
0:01:48.1]} 17. Nb3 {[%clk 0:02:20]} 17... Nb5 {[%clk 0:01:47.7]} 18. Nc5 {[%clk
0:02:13.9]} 18... Ne4 {[%clk 0:01:45.9]} 19. Ne5 {[%clk 0:01:53.3]} 19... Nbd6
{[%clk 0:01:41.6]} 20. Qa3 {[%clk 0:01:35.6]} 20... Nd2 {[%clk 0:01:32.4]} 21.
Qa5 {[%clk 0:01:13.4]} 21... Qxa5 {[%clk 0:01:26.7]} 22. bxa5 {[%clk 0:01:14.3]}
22... g5 {[%clk 0:01:18.7]} 23. Bh2 {[%clk 0:01:09.9]} 23... N6e4 {[%clk
0:01:16]} 24. Nxe4 {[%clk 0:00:47.2]} 24... Bxe4 {[%clk 0:01:16.9]} 25. Bd1
{[%clk 0:00:39.7]} 25... f6 {[%clk 0:00:49]} 26. Nd7 {[%clk 0:00:39]} 26... Nc4
{[%clk 0:00:47.5]} 27. Be2 {[%clk 0:00:31.2]} 27... Bd8 {[%clk 0:00:47.3]} 28.
f3 {[%clk 0:00:21.7]} 28... Bg6 {[%clk 0:00:46.3]} 29. Nc5 {[%clk 0:00:15.4]}
29... Nxa5 {[%clk 0:00:43.2]} 30. Ra2 {[%clk 0:00:04.8]} 30... Kf7 {[%clk
0:00:30.9]} 31. e4 {[%clk 0:00:05.2]} 31... b6 {[%clk 0:00:26.6]} 32. Nd3 {[%clk
0:00:02.1]} 32... dxe4 {[%clk 0:00:25.3]} 33. Nb4 {[%clk 0:00:02.5]} 33... Nb3
{[%clk 0:00:23.1]} 34. Re1 {[%clk 0:00:01.6]} 34... a5 {[%clk 0:00:21.5]} 35.
fxe4 {[%clk 0:00:01.1]} 35... axb4 {[%clk 0:00:21.3]} 36. Rxa8 {[%clk 0:00:02]}
36... Rxa8 {[%clk 0:00:21.9]} 37. cxb4 {[%clk 0:00:02.6]} 37... Bxe4 {[%clk
0:00:21.6]} 0-1

[Event "Late-Titled-Tuesday-Blitz-May-07-2024"]
[Site "Chess.com"]
[Date "2024.05.07"]
[Round "5"]
[White "Yaacovn"]
[Black "Hikaru"]
[Result "0-1"]
[WhiteElo "2850"]
[BlackElo "3215"]
[TimeControl "180+1"]
[EndTime "14:55:41 PDT"]
[Termination "Hikaru won on time"]

1. d4 {[%clk 0:03:00.9]} 1... a6 {[%clk 0:03:00.9]} 2. e3 {[%clk 0:03:01]} 2...
b5 {[%clk 0:02:59.8]} 3. Nf3 {[%clk 0:03:01.4]} 3... e6 {[%clk 0:02:59.4]} 4.
Be2 {[%clk 0:02:58.9]} 4... c5 {[%clk 0:02:59.3]} 5. O-O {[%clk 0:02:58.6]} 5...
Nf6 {[%clk 0:02:59.5]} 6. b3 {[%clk 0:02:59.1]} 6... cxd4 {[%clk 0:02:51.1]} 7.
Nxd4 {[%clk 0:02:59.2]} 7... Bb7 {[%clk 0:02:51.3]} 8. Bf3 {[%clk 0:02:58.7]}
8... Qc8 {[%clk 0:02:46.7]} 9. Bb2 {[%clk 0:02:56.2]} 9... d5 {[%clk 0:02:45.5]}
10. a4 {[%clk 0:02:50.4]} 10... b4 {[%clk 0:02:44]} 11. c3 {[%clk 0:02:48.9]}
11... bxc3 {[%clk 0:02:35]} 12. Nxc3 {[%clk 0:02:49.8]} 12... Nbd7 {[%clk
0:02:35]} 13. Rc1 {[%clk 0:02:48.2]} 13... Qb8 {[%clk 0:02:35.2]} 14. Qe2 {[%clk
0:02:36.4]} 14... Bb4 {[%clk 0:02:32.8]} 15. Na2 {[%clk 0:02:16.4]} 15... Bd6
{[%clk 0:02:32.3]} 16. g3 {[%clk 0:02:10]} 16... O-O {[%clk 0:02:32.2]} 17. Bg2
{[%clk 0:02:10.3]} 17... Nc5 {[%clk 0:02:22.6]} 18. Ba3 {[%clk 0:02:05.5]} 18...
Nfd7 {[%clk 0:02:22.9]} 19. Rc2 {[%clk 0:01:52.4]} 19... Nxb3 {[%clk 0:01:55.6]}
20. Nxb3 {[%clk 0:01:33.9]} 20... Bxa3 {[%clk 0:01:55]} 21. Na5 {[%clk
0:01:31.7]} 21... Bc8 {[%clk 0:01:54.7]} 22. Nc6 {[%clk 0:01:20.1]} 22... Qb3
{[%clk 0:01:43.3]} 23. Nc3 {[%clk 0:01:07.5]} 23... Bd6 {[%clk 0:00:58.5]} 24.
Rb1 {[%clk 0:00:41.1]} 24... Qa3 {[%clk 0:00:58.1]} 25. e4 {[%clk 0:00:34.6]}
25... d4 {[%clk 0:00:54.4]} 26. Nxd4 {[%clk 0:00:30.7]} 26... Be5 {[%clk
0:00:51.3]} 27. Rb3 {[%clk 0:00:25.7]} 27... Qd6 {[%clk 0:00:49.8]} 28. Nf3
{[%clk 0:00:23.5]} 28... Nc5 {[%clk 0:00:46.1]} 29. Rb1 {[%clk 0:00:22.6]} 29...
Ra7 {[%clk 0:00:43.4]} 30. Rd1 {[%clk 0:00:22.3]} 30... Qb8 {[%clk 0:00:43.2]}
31. Nxe5 {[%clk 0:00:19]} 31... Qxe5 {[%clk 0:00:44.1]} 32. Qe3 {[%clk
0:00:19.7]} 32... Rd7 {[%clk 0:00:38.2]} 33. Rxd7 {[%clk 0:00:15.1]} 33... Nxd7
{[%clk 0:00:39.1]} 34. Rd2 {[%clk 0:00:14.9]} 34... Qc7 {[%clk 0:00:38.2]} 35.
Qd4 {[%clk 0:00:14.8]} 35... Ne5 {[%clk 0:00:36.4]} 36. h3 {[%clk 0:00:13.6]}
36... h5 {[%clk 0:00:34]} 37. f4 {[%clk 0:00:11.8]} 37... Nc4 {[%clk 0:00:34.4]}
38. Rf2 {[%clk 0:00:10.8]} 38... Rd8 {[%clk 0:00:32.9]} 39. Nd5 {[%clk 0:00:03]}
39... exd5 {[%clk 0:00:33.8]} 40. exd5 {[%clk 0:00:03.6]} 40... Nd6 {[%clk
0:00:33.7]} 41. Kh2 {[%clk 0:00:03.3]} 41... Nf5 {[%clk 0:00:30.1]} 42. Qe5
{[%clk 0:00:03.5]} 42... Qxe5 {[%clk 0:00:28.9]} 43. fxe5 {[%clk 0:00:04.4]}
43... Ne3 {[%clk 0:00:29.2]} 0-1

[Event "Late-Titled-Tuesday-Blitz-May-07-2024"]
[Site "Chess.com"]
[Date "2024.05.07"]
[Round "5"]
[White "HaryKane"]
[Black "Shiner22"]
[Result "1-0"]
[WhiteElo "2542"]
[BlackElo "2295"]
[TimeControl "180+1"]
[EndTime "14:55:44 PDT"]
[Termination "HaryKane won by checkmate"]

1. e4 {[%clk 0:03:00.9]} 1... c5 {[%clk 0:02:59.6]} 2. Nf3 {[%clk 0:02:59.3]}
2... Nc6 {[%clk 0:02:59.7]} 3. g3 {[%clk 0:02:51.6]} 3... g6 {[%clk 0:02:58.4]}
4. Bg2 {[%clk 0:02:51.2]} 4... Bg7 {[%clk 0:02:59.1]} 5. O-O {[%clk 0:02:50.2]}
5... e6 {[%clk 0:02:59.7]} 6. Re1 {[%clk 0:02:48.8]} 6... Nge7 {[%clk
0:02:59.6]} 7. c3 {[%clk 0:02:48.1]} 7... O-O {[%clk 0:02:59.1]} 8. d4 {[%clk
0:02:47.8]} 8... cxd4 {[%clk 0:02:57.7]} 9. cxd4 {[%clk 0:02:48.7]} 9... d5
{[%clk 0:02:57.5]} 10. e5 {[%clk 0:02:46.4]} 10... a5 {[%clk 0:02:55.3]} 11. Nc3
{[%clk 0:02:46]} 11... b6 {[%clk 0:02:50.9]} 12. Bf1 {[%clk 0:02:41.8]} 12...
Nf5 {[%clk 0:02:29.9]} 13. Bb5 {[%clk 0:02:35.1]} 13... Qc7 {[%clk 0:02:28.5]}
14. Bf4 {[%clk 0:02:29.4]} 14... h5 {[%clk 0:02:25.2]} 15. Rc1 {[%clk
0:02:27.8]} 15... Bb7 {[%clk 0:02:21.6]} 16. Qa4 {[%clk 0:02:20.7]} 16... Rac8
{[%clk 0:02:20.5]} 17. Nxd5 {[%clk 0:01:59.3]} 17... exd5 {[%clk 0:02:08.6]} 18.
e6 {[%clk 0:01:59.2]} 18... Qe7 {[%clk 0:01:57.3]} 19. exf7+ {[%clk 0:01:54.9]}
19... Qxf7 {[%clk 0:01:56.9]} 20. Bxc6 {[%clk 0:01:55.4]} 20... Bxc6 {[%clk
0:01:55.9]} 21. Rxc6 {[%clk 0:01:55.7]} 21... Rxc6 {[%clk 0:01:55]} 22. Qxc6
{[%clk 0:01:54.4]} 22... Nxd4 {[%clk 0:01:54.5]} 23. Nxd4 {[%clk 0:01:47.7]}
23... Bxd4 {[%clk 0:01:54.3]} 24. Re6 {[%clk 0:01:24.1]} 24... Kh7 {[%clk
0:01:35.4]} 25. Rd6 {[%clk 0:01:02.3]} 25... Re8 {[%clk 0:01:23.9]} 26. Rxd5
{[%clk 0:00:31.1]} 26... Bc5 {[%clk 0:00:37.6]} 27. Rd7 {[%clk 0:00:27.3]} 27...
Re7 {[%clk 0:00:37.3]} 28. Rxe7 {[%clk 0:00:21.6]} 28... Qxe7 {[%clk 0:00:36.9]}
29. Kg2 {[%clk 0:00:20.7]} 29... Kg7 {[%clk 0:00:30.6]} 30. Qf3 {[%clk
0:00:14.8]} 30... Qd7 {[%clk 0:00:28.2]} 31. Be5+ {[%clk 0:00:12.4]} 31... Kh6
{[%clk 0:00:17.9]} 32. Qf4+ {[%clk 0:00:11.3]} 32... Kh7 {[%clk 0:00:17.2]} 33.
Qf6 {[%clk 0:00:08.1]} 33... Qb7+ {[%clk 0:00:13.6]} 34. f3 {[%clk 0:00:06.6]}
34... Kh6 {[%clk 0:00:11.4]} 35. Qh8+ {[%clk 0:00:05.9]} 35... Kg5 {[%clk
0:00:11.4]} 36. Bf4+ {[%clk 0:00:04.7]} 36... Kf5 {[%clk 0:00:10]} 37. Qe5#
{[%clk 0:00:05.2]} 1-0